[Event "*** SCC Grand Prix: Titled Tuesday Blitz"]
[Site "Chess.com"]
[Date "2020.06.02"]
[Round "5"]
[White "ChessQueen"]
[Black "Shota_Azaladze"]
[Result "1-0"]
[WhiteElo "2657"]
[BlackElo "2836"]
[TimeControl "180+1"]
[EndTime "11:00:38 PDT"]
[Termination "ChessQueen won by resignation"]

1. e4 {[%clk 0:03:00.9]} 1... g6 {[%clk 0:02:59.5]} 2. d4 {[%clk 0:03:00.4]}
2... Bg7 {[%clk 0:03:00.1]} 3. Nc3 {[%clk 0:03:00.7]} 3... c6 {[%clk 0:03:00.5]}
4. Bc4 {[%clk 0:02:58.1]} 4... d5 {[%clk 0:02:55.1]} 5. exd5 {[%clk 0:02:56.2]}
5... b5 {[%clk 0:02:55.6]} 6. Bb3 {[%clk 0:02:51.7]} 6... b4 {[%clk 0:02:55.6]}
7. Nce2 {[%clk 0:02:48.8]} 7... cxd5 {[%clk 0:02:55.5]} 8. Nf3 {[%clk
0:02:47.2]} 8... Nf6 {[%clk 0:02:55.1]} 9. Ba4+ {[%clk 0:02:35.2]} 9... Bd7
{[%clk 0:02:53.8]} 10. Bxd7+ {[%clk 0:02:35.2]} 10... Nbxd7 {[%clk 0:02:54.7]}
11. O-O {[%clk 0:02:35.1]} 11... O-O {[%clk 0:02:54.3]} 12. a3 {[%clk
0:02:34.9]} 12... bxa3 {[%clk 0:02:43]} 13. Rxa3 {[%clk 0:02:34.6]} 13... a5
{[%clk 0:02:43.6]} 14. Bf4 {[%clk 0:02:24.9]} 14... a4 {[%clk 0:02:37.3]} 15.
Nc3 {[%clk 0:02:11.7]} 15... Nb6 {[%clk 0:02:36.5]} 16. Ne5 {[%clk 0:02:01]}
16... e6 {[%clk 0:02:26.9]} 17. h3 {[%clk 0:01:58.1]} 17... Nfd7 {[%clk
0:02:19.9]} 18. Nc6 {[%clk 0:01:56.9]} 18... Qf6 {[%clk 0:02:15.1]} 19. Bd6
{[%clk 0:01:48.7]} 19... Rfe8 {[%clk 0:02:13.2]} 20. Nb5 {[%clk 0:01:48.9]}
20... Nc4 {[%clk 0:02:11.5]} 21. Rf3 {[%clk 0:01:49]} 21... Qh4 {[%clk
0:01:48.8]} 22. Bg3 {[%clk 0:01:48.3]} 22... Qh5 {[%clk 0:01:48.8]} 23. Nc7
{[%clk 0:01:47.1]} 23... Nxb2 {[%clk 0:01:35]} 24. Qa1 {[%clk 0:01:46.5]} 24...
Nc4 {[%clk 0:01:28]} 25. Nxe8 {[%clk 0:01:46]} 25... Rxe8 {[%clk 0:01:28.9]} 26.
Qxa4 {[%clk 0:01:42.9]} 26... Nd2 {[%clk 0:01:26.1]} 27. Ne5 {[%clk 0:01:41.6]}
27... Nxf3+ {[%clk 0:01:13.5]} 28. Nxf3 {[%clk 0:01:39.3]} 28... Nf6 {[%clk
0:01:13.5]} 29. Rb1 {[%clk 0:01:31.7]} 29... Qf5 {[%clk 0:01:09.9]} 30. Rb7
{[%clk 0:01:27.9]} 30... Rc8 {[%clk 0:01:04.9]} 31. Ne5 {[%clk 0:01:27.5]} 31...
Qxc2 {[%clk 0:01:00.7]} 32. Qxc2 {[%clk 0:01:17.8]} 32... Rxc2 {[%clk
0:01:01.6]} 33. Nxf7 {[%clk 0:01:08.5]} 33... Ne4 {[%clk 0:00:57.7]} 34. Ne5
{[%clk 0:00:51.2]} 34... Bxe5 {[%clk 0:00:48.9]} 35. Bxe5 {[%clk 0:00:51.4]}
35... Rxf2 {[%clk 0:00:47.2]} 36. Rg7+ {[%clk 0:00:50.6]} 36... Kf8 {[%clk
0:00:47.4]} 37. Rxh7 {[%clk 0:00:51]} 37... Rf7 {[%clk 0:00:45]} 38. Rh6 {[%clk
0:00:49.3]} 38... g5 {[%clk 0:00:34.1]} 39. Rxe6 {[%clk 0:00:49.1]} 39... Rd7
{[%clk 0:00:31.6]} 40. Kh2 {[%clk 0:00:45.4]} 40... Kf7 {[%clk 0:00:31.7]} 41.
Rh6 {[%clk 0:00:45.5]} 41... Re7 {[%clk 0:00:25.7]} 42. Rh7+ {[%clk 0:00:43.4]}
42... Ke6 {[%clk 0:00:25.7]} 43. Rxe7+ {[%clk 0:00:43.9]} 43... Kxe7 {[%clk
0:00:26.6]} 44. g3 {[%clk 0:00:43.2]} 44... Ke6 {[%clk 0:00:26.5]} 45. Kg2
{[%clk 0:00:42]} 45... g4 {[%clk 0:00:19.7]} 46. hxg4 {[%clk 0:00:39.5]} 46...
Kf7 {[%clk 0:00:19.4]} 47. Kf3 {[%clk 0:00:38.4]} 47... Kg6 {[%clk 0:00:20]} 48.
Kf4 {[%clk 0:00:38.9]} 48... Ng5 {[%clk 0:00:19.8]} 49. Bb8 {[%clk 0:00:36.7]}
49... Nf7 {[%clk 0:00:20.2]} 50. Bc7 {[%clk 0:00:34.4]} 50... Kf6 {[%clk
0:00:20.1]} 51. Bb8 {[%clk 0:00:33]} 51... Kg6 {[%clk 0:00:20.4]} 52. Be5 {[%clk
0:00:33]} 52... Ng5 {[%clk 0:00:20.2]} 53. Ke3 {[%clk 0:00:30]} 53... Ne6 {[%clk
0:00:20.1]} 54. Bf4 {[%clk 0:00:29.8]} 54... Kf6 {[%clk 0:00:20.3]} 55. Kd3
{[%clk 0:00:29.8]} 55... Kg6 {[%clk 0:00:20.8]} 56. Kc3 {[%clk 0:00:30.3]} 56...
Kf6 {[%clk 0:00:21.1]} 57. Be3 {[%clk 0:00:30.4]} 57... Ke7 {[%clk 0:00:19.5]}
58. Kb4 {[%clk 0:00:29.8]} 58... Kd6 {[%clk 0:00:20.1]} 59. Kb5 {[%clk
0:00:29.8]} 59... Nf8 {[%clk 0:00:20]} 60. Bf4+ {[%clk 0:00:29.7]} 60... Ke6
{[%clk 0:00:20.6]} 61. Kc6 {[%clk 0:00:28.1]} 61... Nh7 {[%clk 0:00:21.2]} 62.
g5 {[%clk 0:00:28]} 62... Nf8 {[%clk 0:00:21.3]} 63. g4 {[%clk 0:00:26.5]} 63...
Ng6 {[%clk 0:00:22.2]} 64. Bg3 {[%clk 0:00:26.6]} 64... Ne7+ {[%clk 0:00:22.3]}
65. Kc5 {[%clk 0:00:26.9]} 65... Ng6 {[%clk 0:00:22]} 66. Bd6 {[%clk 0:00:27.4]}
66... Nh4 {[%clk 0:00:21.5]} 67. Be5 {[%clk 0:00:27.1]} 67... Ng6 {[%clk
0:00:21.5]} 68. Bg3 {[%clk 0:00:27.2]} 68... Ne7 {[%clk 0:00:20.9]} 69. Kb6
{[%clk 0:00:26.5]} 69... Kd7 {[%clk 0:00:20.8]} 70. Kb5 {[%clk 0:00:25.9]} 70...
Ng6 {[%clk 0:00:20.7]} 71. Kb4 {[%clk 0:00:25]} 71... Ne7 {[%clk 0:00:20.2]} 72.
Kc5 {[%clk 0:00:24.6]} 72... Ke6 {[%clk 0:00:20.4]} 73. Be5 {[%clk 0:00:24.8]}
73... Ng6 {[%clk 0:00:18.5]} 74. Bf6 {[%clk 0:00:25.2]} 74... Nf4 {[%clk
0:00:18.2]} 75. Kc6 {[%clk 0:00:25.7]} 75... Ng6 {[%clk 0:00:18]} 76. Kc7 {[%clk
0:00:25.9]} 76... Nh4 {[%clk 0:00:17.9]} 77. Kd8 {[%clk 0:00:25.8]} 77... Nf3
{[%clk 0:00:15.8]} 78. Ke8 {[%clk 0:00:24.8]} 78... Nh2 {[%clk 0:00:15.8]} 79.
Kf8 {[%clk 0:00:20.4]} 79... Nxg4 {[%clk 0:00:15.9]} 80. Bd8 {[%clk 0:00:17.9]}
80... Kf5 {[%clk 0:00:14.5]} 81. Kf7 {[%clk 0:00:18.3]} 81... Ke4 {[%clk
0:00:13.4]} 82. Bb6 {[%clk 0:00:15.6]} 82... Kf5 {[%clk 0:00:12.8]} 83. g6
{[%clk 0:00:14.8]} 83... Nh6+ {[%clk 0:00:13.3]} 84. Kg7 {[%clk 0:00:15.3]}
84... Ng4 {[%clk 0:00:13.3]} 85. Bd8 {[%clk 0:00:14.9]} 85... Ke4 {[%clk
0:00:12.3]} 86. Kh7 {[%clk 0:00:15.4]} 86... Kxd4 {[%clk 0:00:06.4]} 87. g7
{[%clk 0:00:15.8]} 87... Ke4 {[%clk 0:00:06.6]} 88. g8=Q {[%clk 0:00:16.3]}
88... Ne5 {[%clk 0:00:07.3]} 89. Qe6 {[%clk 0:00:16]} 89... d4 {[%clk
0:00:07.6]} 90. Bf6 {[%clk 0:00:16.1]} 1-0

[Event "*** SCC Grand Prix: Titled Tuesday Blitz"]
[Site "Chess.com"]
[Date "2020.06.02"]
[Round "5"]
[White "Alex_Molchanov"]
[Black "VALPARAISO37"]
[Result "1-0"]
[WhiteElo "2508"]
[BlackElo "2354"]
[TimeControl "180+1"]
[EndTime "11:00:40 PDT"]
[Termination "Alex_Molchanov won on time"]

1. d4 {[%clk 0:03:00.9]} 1... Nf6 {[%clk 0:02:58.5]} 2. Nf3 {[%clk 0:03:00.6]}
2... d5 {[%clk 0:02:58.6]} 3. g3 {[%clk 0:03:00.5]} 3... b5 {[%clk 0:02:55.5]}
4. Bg2 {[%clk 0:02:59.9]} 4... e6 {[%clk 0:02:55.9]} 5. a4 {[%clk 0:02:59]} 5...
b4 {[%clk 0:02:55.7]} 6. O-O {[%clk 0:02:59.3]} 6... a5 {[%clk 0:02:52]} 7. c4
{[%clk 0:02:58.9]} 7... Bb7 {[%clk 0:02:51.5]} 8. c5 {[%clk 0:02:51.6]} 8... Nc6
{[%clk 0:02:51.2]} 9. Bf4 {[%clk 0:02:51.1]} 9... Nh5 {[%clk 0:02:50.2]} 10. e3
{[%clk 0:02:48.9]} 10... Be7 {[%clk 0:02:49.2]} 11. Ne5 {[%clk 0:02:48.3]} 11...
Nxf4 {[%clk 0:02:46.7]} 12. Nxc6 {[%clk 0:02:45.9]} 12... Bxc6 {[%clk
0:02:35.1]} 13. gxf4 {[%clk 0:02:46.3]} 13... f5 {[%clk 0:02:29.8]} 14. Nd2
{[%clk 0:02:44.2]} 14... O-O {[%clk 0:02:25.4]} 15. Nf3 {[%clk 0:02:43.3]} 15...
Bf6 {[%clk 0:02:25.3]} 16. Re1 {[%clk 0:02:42.7]} 16... Qe8 {[%clk 0:02:25.1]}
17. Kh1 {[%clk 0:02:41.6]} 17... Kh8 {[%clk 0:02:23.4]} 18. b3 {[%clk
0:02:41.2]} 18... Bb7 {[%clk 0:02:22.2]} 19. Rg1 {[%clk 0:02:40.4]} 19... Ba6
{[%clk 0:02:20]} 20. Bf1 {[%clk 0:02:36.6]} 20... Bxf1 {[%clk 0:02:19.7]} 21.
Qxf1 {[%clk 0:02:37.5]} 21... Qh5 {[%clk 0:02:19.7]} 22. Qg2 {[%clk 0:02:35.9]}
22... Rg8 {[%clk 0:02:15.8]} 23. Qg3 {[%clk 0:02:16]} 23... h6 {[%clk
0:02:11.4]} 24. Ne5 {[%clk 0:02:15.3]} 24... Bxe5 {[%clk 0:02:10.2]} 25. fxe5
{[%clk 0:02:16.2]} 25... g5 {[%clk 0:02:09.7]} 26. f3 {[%clk 0:02:16]} 26... c6
{[%clk 0:02:08.3]} 27. Ra2 {[%clk 0:02:14.3]} 27... g4 {[%clk 0:02:07]} 28. Rag2
{[%clk 0:02:12.7]} 28... Ra7 {[%clk 0:01:58.2]} 29. Qf4 {[%clk 0:02:00.5]} 29...
Rag7 {[%clk 0:01:57.3]} 30. fxg4 {[%clk 0:01:59.5]} 30... Rxg4 {[%clk
0:01:57.5]} 31. Rxg4 {[%clk 0:01:59.6]} 31... Rxg4 {[%clk 0:01:57.6]} 32. Rxg4
{[%clk 0:01:59.8]} 32... fxg4 {[%clk 0:01:52]} 33. Qf6+ {[%clk 0:01:56.2]} 33...
Kh7 {[%clk 0:01:50.9]} 34. Qe7+ {[%clk 0:01:52.4]} 34... Kg8 {[%clk 0:01:49.8]}
35. Qxe6+ {[%clk 0:01:51.9]} 35... Kh7 {[%clk 0:01:49.7]} 36. Qe7+ {[%clk
0:01:43.4]} 36... Kg8 {[%clk 0:01:46.4]} 37. Qd8+ {[%clk 0:01:24.1]} 37... Kh7
{[%clk 0:01:45.1]} 38. Qf6 {[%clk 0:01:18]} 38... g3 {[%clk 0:01:43]} 39. Qe7+
{[%clk 0:01:03]} 39... Kh8 {[%clk 0:01:37.6]} 40. Qf6+ {[%clk 0:00:58.4]} 40...
Kh7 {[%clk 0:01:36.3]} 41. h4 {[%clk 0:00:58.8]} 41... Qd1+ {[%clk 0:01:13.9]}
42. Kg2 {[%clk 0:00:57.8]} 42... Qe2+ {[%clk 0:01:14.5]} 43. Kxg3 {[%clk
0:00:55.9]} 43... Qxe3+ {[%clk 0:01:15.1]} 44. Kg4 {[%clk 0:00:42.5]} 44... Qe4+
{[%clk 0:01:05]} 45. Qf4 {[%clk 0:00:39.5]} 45... h5+ {[%clk 0:01:04.8]} 46. Kg3
{[%clk 0:00:39]} 46... Qd3+ {[%clk 0:01:02.6]} 47. Kf2 {[%clk 0:00:33.5]} 47...
Qc2+ {[%clk 0:01:00.8]} 48. Kf3 {[%clk 0:00:33.7]} 48... Qd1+ {[%clk 0:00:57.7]}
49. Kg2 {[%clk 0:00:30]} 49... Qe2+ {[%clk 0:00:51.7]} 50. Qf2 {[%clk 0:00:27]}
50... Qg4+ {[%clk 0:00:52.2]} 51. Kh2 {[%clk 0:00:26.9]} 51... Qe4 {[%clk
0:00:46.1]} 52. Qf7+ {[%clk 0:00:22.9]} 52... Kh6 {[%clk 0:00:44.9]} 53. Qf8+
{[%clk 0:00:16]} 53... Kh7 {[%clk 0:00:39.2]} 54. Qe7+ {[%clk 0:00:16.3]} 54...
Kh6 {[%clk 0:00:38.1]} 55. Qg5+ {[%clk 0:00:16.1]} 55... Kh7 {[%clk 0:00:36.2]}
56. Qxh5+ {[%clk 0:00:16.8]} 56... Kg7 {[%clk 0:00:36.7]} 57. Qg5+ {[%clk
0:00:17.2]} 57... Kf7 {[%clk 0:00:35.8]} 58. Qf6+ {[%clk 0:00:16.3]} 58... Ke8
{[%clk 0:00:35.9]} 59. Qxc6+ {[%clk 0:00:16.2]} 59... Ke7 {[%clk 0:00:35.3]} 60.
Qf6+ {[%clk 0:00:15.7]} 60... Ke8 {[%clk 0:00:35.3]} 61. Qf2 {[%clk 0:00:12.9]}
61... Ke7 {[%clk 0:00:32.5]} 62. c6 {[%clk 0:00:13]} 62... Kd8 {[%clk
0:00:30.8]} 63. h5 {[%clk 0:00:08.5]} 63... Kc7 {[%clk 0:00:28.1]} 64. h6 {[%clk
0:00:09]} 64... Kxc6 {[%clk 0:00:26.4]} 65. Qf6+ {[%clk 0:00:09]} 65... Kb7
{[%clk 0:00:25.8]} 66. Qg7+ {[%clk 0:00:07.7]} 66... Kc6 {[%clk 0:00:25.3]} 67.
h7 {[%clk 0:00:07.8]} 67... Qe2+ {[%clk 0:00:25.7]} 68. Kh3 {[%clk 0:00:08.2]}
68... Qd3+ {[%clk 0:00:25.3]} 69. Kh4 {[%clk 0:00:08.1]} 69... Qxd4+ {[%clk
0:00:24]} 70. Kh5 {[%clk 0:00:08.4]} 70... Qd1+ {[%clk 0:00:23.4]} 71. Kg6
{[%clk 0:00:08.7]} 71... Qg4+ {[%clk 0:00:22.1]} 72. Kf7 {[%clk 0:00:08.9]}
72... Qd7+ {[%clk 0:00:15.4]} 73. Kf6 {[%clk 0:00:09.2]} 73... Qd8+ {[%clk
0:00:13.7]} 74. Qe7 {[%clk 0:00:09.1]} 74... Qh8+ {[%clk 0:00:14.1]} 75. Kg6
{[%clk 0:00:09.4]} 75... d4 {[%clk 0:00:11.9]} 76. Qf6+ {[%clk 0:00:09.4]} 76...
Qxf6+ {[%clk 0:00:08.7]} 77. exf6 {[%clk 0:00:10.3]} 77... d3 {[%clk 0:00:08.8]}
78. h8=Q {[%clk 0:00:11.2]} 78... d2 {[%clk 0:00:09.3]} 79. Qd8 {[%clk
0:00:11.2]} 79... d1=N {[%clk 0:00:09]} 80. Qxd1 {[%clk 0:00:12.1]} 80... Kc5
{[%clk 0:00:08.2]} 81. f7 {[%clk 0:00:12.2]} 81... Kb6 {[%clk 0:00:07.8]} 82.
Qc2 {[%clk 0:00:11.3]} 82... Ka7 {[%clk 0:00:06.4]} 83. Qc7+ {[%clk 0:00:11]}
83... Ka6 {[%clk 0:00:06.3]} 84. Qc6+ {[%clk 0:00:11.4]} 84... Ka7 {[%clk
0:00:06.4]} 85. Qb5 {[%clk 0:00:11.7]} 1-0

[Event "*** SCC Grand Prix: Titled Tuesday Blitz"]
[Site "Chess.com"]
[Date "2020.06.02"]
[Round "5"]
[White "Pavel_Mir"]
[Black "CaspiIsrael"]
[Result "1/2-1/2"]
[WhiteElo "2287"]
[BlackElo "2584"]
[TimeControl "180+1"]
[EndTime "11:01:01 PDT"]
[Termination "Game drawn by 50-move rule"]

1. e4 {[%clk 0:03:00.9]} 1... d5 {[%clk 0:02:59.1]} 2. Nc3 {[%clk 0:02:59.8]}
2... dxe4 {[%clk 0:02:58.1]} 3. Nxe4 {[%clk 0:03:00]} 3... Qd5 {[%clk
0:02:58.6]} 4. Nc3 {[%clk 0:02:58.7]} 4... Qd6 {[%clk 0:02:58.3]} 5. d4 {[%clk
0:02:57.6]} 5... Nf6 {[%clk 0:02:57.5]} 6. Nf3 {[%clk 0:02:55.9]} 6... a6 {[%clk
0:02:57.1]} 7. g3 {[%clk 0:02:50.8]} 7... Bg4 {[%clk 0:02:56.9]} 8. Bg2 {[%clk
0:02:49.8]} 8... Nc6 {[%clk 0:02:57.3]} 9. h3 {[%clk 0:02:20.5]} 9... Bh5 {[%clk
0:02:56.7]} 10. Be3 {[%clk 0:02:13.4]} 10... O-O-O {[%clk 0:02:55.3]} 11. g4
{[%clk 0:02:13.3]} 11... Bg6 {[%clk 0:02:54.9]} 12. Qe2 {[%clk 0:02:10.5]} 12...
e6 {[%clk 0:02:45.5]} 13. Nh4 {[%clk 0:02:05.4]} 13... Nb4 {[%clk 0:02:32.5]}
14. Nxg6 {[%clk 0:02:01.8]} 14... hxg6 {[%clk 0:02:33.4]} 15. O-O-O {[%clk
0:01:55.5]} 15... Nbd5 {[%clk 0:02:33.3]} 16. Bd2 {[%clk 0:01:34.3]} 16... Nf4
{[%clk 0:02:28.9]} 17. Bxf4 {[%clk 0:01:29.1]} 17... Qxf4+ {[%clk 0:02:28.5]}
18. Qe3 {[%clk 0:01:29.8]} 18... Bd6 {[%clk 0:02:14.6]} 19. Kb1 {[%clk
0:01:25.5]} 19... Qxe3 {[%clk 0:02:12.3]} 20. fxe3 {[%clk 0:01:25.3]} 20... e5
{[%clk 0:02:11.8]} 21. Rhf1 {[%clk 0:01:19.7]} 21... exd4 {[%clk 0:02:10.3]} 22.
exd4 {[%clk 0:01:16.6]} 22... Rde8 {[%clk 0:02:04.7]} 23. g5 {[%clk 0:01:11.8]}
23... Nh7 {[%clk 0:02:01.1]} 24. Rxf7 {[%clk 0:01:06]} 24... Nxg5 {[%clk
0:02:00.8]} 25. Rxg7 {[%clk 0:01:02.8]} 25... Rh6 {[%clk 0:01:56.8]} 26. a3
{[%clk 0:00:52.3]} 26... Nxh3 {[%clk 0:01:42.7]} 27. Rh1 {[%clk 0:00:43.4]}
27... Reh8 {[%clk 0:01:41.7]} 28. Bxh3+ {[%clk 0:00:27]} 28... Rxh3 {[%clk
0:01:42.6]} 29. Rxh3 {[%clk 0:00:27.2]} 29... Rxh3 {[%clk 0:01:42.9]} 30. Rxg6
{[%clk 0:00:27.9]} 30... Bxa3 {[%clk 0:01:36.1]} 31. bxa3 {[%clk 0:00:22.6]}
31... Rxc3 {[%clk 0:01:34.9]} 32. Kb2 {[%clk 0:00:23]} 32... Rc4 {[%clk
0:01:34.9]} 33. c3 {[%clk 0:00:23.1]} 33... c6 {[%clk 0:01:29.9]} 34. Kb3 {[%clk
0:00:21.2]} 34... b5 {[%clk 0:01:29.2]} 35. Rg7 {[%clk 0:00:19.6]} 35... Kb8
{[%clk 0:01:23]} 36. Rh7 {[%clk 0:00:19.3]} 36... c5 {[%clk 0:01:19.6]} 37. dxc5
{[%clk 0:00:17.6]} 37... Rxc5 {[%clk 0:01:19.9]} 38. Kb4 {[%clk 0:00:17.8]}
38... Rc6 {[%clk 0:01:15.6]} 39. Rg7 {[%clk 0:00:15]} 39... Kc8 {[%clk
0:01:10.2]} 40. Rh7 {[%clk 0:00:15.2]} 40... Rc4+ {[%clk 0:01:09.9]} 41. Ka5
{[%clk 0:00:14.6]} 41... Ra4+ {[%clk 0:01:08.5]} 42. Kb6 {[%clk 0:00:14.8]}
42... Rxa3 {[%clk 0:01:08.9]} 43. Rc7+ {[%clk 0:00:13.8]} 43... Kd8 {[%clk
0:01:04.8]} 44. Ra7 {[%clk 0:00:13.7]} 44... Rxc3 {[%clk 0:00:55.1]} 45. Rxa6
{[%clk 0:00:13.9]} 45... b4 {[%clk 0:00:53.6]} 46. Ra4 {[%clk 0:00:13.1]} 46...
b3 {[%clk 0:00:48.6]} 47. Rb4 {[%clk 0:00:13.2]} 47... Kd7 {[%clk 0:00:48.3]}
48. Ka5 {[%clk 0:00:13.4]} 48... Kc6 {[%clk 0:00:44.9]} 49. Ka4 {[%clk
0:00:13.5]} 49... Kc5 {[%clk 0:00:43.8]} 50. Rxb3 {[%clk 0:00:13.4]} 50... Rc1
{[%clk 0:00:44.3]} 51. Rb5+ {[%clk 0:00:12.9]} 51... Kc4 {[%clk 0:00:43]} 52.
Rb4+ {[%clk 0:00:13.2]} 52... Kc3 {[%clk 0:00:42.8]} 53. Rb3+ {[%clk 0:00:13.4]}
53... Kc2 {[%clk 0:00:43.2]} 54. Rh3 {[%clk 0:00:12.8]} 54... Rb1 {[%clk
0:00:42.5]} 55. Rh2+ {[%clk 0:00:12.4]} 55... Kd3 {[%clk 0:00:42.5]} 56. Rh3+
{[%clk 0:00:12.9]} 56... Kc4 {[%clk 0:00:42]} 57. Rh4+ {[%clk 0:00:13.3]} 57...
Kd5 {[%clk 0:00:42.4]} 58. Rh5+ {[%clk 0:00:13.8]} 58... Ke4 {[%clk 0:00:43]}
59. Rh4+ {[%clk 0:00:13.8]} 59... Kf5 {[%clk 0:00:43.3]} 60. Rh5+ {[%clk
0:00:13.9]} 60... Kg4 {[%clk 0:00:43.8]} 61. Rh2 {[%clk 0:00:13.9]} 61... Rb8
{[%clk 0:00:42.3]} 62. Rc2 {[%clk 0:00:12.3]} 62... Kf3 {[%clk 0:00:42.3]} 63.
Rc3+ {[%clk 0:00:12.3]} 63... Ke2 {[%clk 0:00:42.3]} 64. Rb3 {[%clk 0:00:11.5]}
64... Rc8 {[%clk 0:00:41]} 65. Rb2+ {[%clk 0:00:10]} 65... Kd3 {[%clk 0:00:41]}
66. Rb3+ {[%clk 0:00:10.2]} 66... Kc4 {[%clk 0:00:37.7]} 67. Rb4+ {[%clk
0:00:10.1]} 67... Kc3 {[%clk 0:00:37.5]} 68. Rb3+ {[%clk 0:00:10.2]} 68... Kc4
{[%clk 0:00:37.7]} 69. Rb4+ {[%clk 0:00:10.5]} 69... Kc5 {[%clk 0:00:38.2]} 70.
Rb5+ {[%clk 0:00:10.6]} 70... Kc6 {[%clk 0:00:38.2]} 71. Rb4 {[%clk 0:00:10.3]}
71... Rd8 {[%clk 0:00:36.1]} 72. Rc4+ {[%clk 0:00:10.2]} 72... Kb6 {[%clk
0:00:35.9]} 73. Rb4+ {[%clk 0:00:10.4]} 73... Kc5 {[%clk 0:00:35.7]} 74. Rb5+
{[%clk 0:00:10]} 74... Kc4 {[%clk 0:00:35.9]} 75. Rb4+ {[%clk 0:00:10.3]} 75...
Kc3 {[%clk 0:00:36.2]} 76. Rb3+ {[%clk 0:00:10.7]} 76... Kc2 {[%clk 0:00:36.7]}
77. Rb4 {[%clk 0:00:10.5]} 77... Rd5 {[%clk 0:00:34.4]} 78. Rb5 {[%clk
0:00:10.4]} 78... Rd4+ {[%clk 0:00:33.8]} 79. Rb4 {[%clk 0:00:10.6]} 79... Rd1
{[%clk 0:00:33.6]} 80. Rh4 {[%clk 0:00:09.2]} 80... Rd5 {[%clk 0:00:29.6]} 81.
Rh2+ {[%clk 0:00:08.5]} 81... Kc3 {[%clk 0:00:29.8]} 82. Rh3+ {[%clk 0:00:08.9]}
82... Kc4 {[%clk 0:00:30.2]} 83. Rh4+ {[%clk 0:00:09.3]} 83... Kc5 {[%clk
0:00:30.6]} 84. Rh2 {[%clk 0:00:09.4]} 84... Rd3 {[%clk 0:00:27]} 85. Rh5+
{[%clk 0:00:08.3]} 85... Kc4 {[%clk 0:00:27.3]} 86. Rh4+ {[%clk 0:00:08.7]}
86... Kc3 {[%clk 0:00:27.7]} 87. Rh7 {[%clk 0:00:08.6]} 87... Rd4+ {[%clk
0:00:27.7]} 88. Ka5 {[%clk 0:00:08.1]} 88... Kc4 {[%clk 0:00:27.3]} 89. Ka6
{[%clk 0:00:08.1]} 89... Rd6+ {[%clk 0:00:27]} 90. Kb7 {[%clk 0:00:07.4]} 90...
Rd5 {[%clk 0:00:25]} 91. Ka8 {[%clk 0:00:07.3]} 91... Kb5 {[%clk 0:00:24.9]} 92.
Rb7+ {[%clk 0:00:07.2]} 92... Ka6 {[%clk 0:00:24.6]} 93. Ra7+ {[%clk 0:00:07.2]}
93... Kb6 {[%clk 0:00:24.8]} 94. Rb7+ {[%clk 0:00:07.5]} 94... Kc6 {[%clk
0:00:25.2]} 95. Rb1 {[%clk 0:00:06.3]} 95... Ra5+ {[%clk 0:00:21.7]} 96. Kb8
{[%clk 0:00:06]} 96... Rc5 {[%clk 0:00:21.9]} 97. Ka8 {[%clk 0:00:05.7]} 97...
Kc7 {[%clk 0:00:20.4]} 98. Rb7+ {[%clk 0:00:04.6]} 98... Kc8 {[%clk 0:00:19.5]}
99. Rb8+ {[%clk 0:00:04.7]} 99... Kc7 {[%clk 0:00:19.7]} 100. Rb7+ {[%clk
0:00:05.3]} 1/2-1/2